bitfinex/quotes_SOLUSD_20220207
["timestamp","ask_amount","ask_price","bid_price","bid_amount"]
[1644205348736,10.17,118.91,118.82,28.99872062]
[1644205348937,4.206,118.9,118.82,28.99872062]
[1644205349138,10.17,118.89,118.82,28.99872062]
[1644205349337,10.42,118.89,118.82,28.99872062]
[1644205349536,39.61470228,118.88,118.82,28.99872062]
[1644205349736,39.86470228,118.88,118.82,28.99872062]
[1644205349937,39.86470228,118.88,118.82,63.84917226]
[1644205350140,10.17,118.89,118.82,63.84917226]
[1644205350737,10.17,118.89,118.82,28.99872062]
[1644205350940,22.794,118.89,118.82,28.99872062]
[1644205351640,41.75902388,118.88,118.82,28.99872062]
[1644205352039,12.6256,118.87,118.82,28.99872062]
[1644205352239,12.6256,118.87,118.83,44.93649008]
[1644205352640,52.2479,118.92,118.83,44.93649008]
[1644205352961,10.17,118.95,118.83,51.18649008]
[1644205353340,35.68283452,118.94,118.83,51.18649008]
[1644205353740,0.2,118.93,118.83,51.18649008]
[1644205353939,12.8193,118.93,118.83,6.25]
[1644205354139,0.2,118.92,118.83,0.25]
[1644205354339,0.2,118.92,118.83,6.0]
[1644205354541,0.2,118.93,118.83,6.0]
[1644205354741,0.2,118.93,118.79,42.0643]
[1644205354944,12.6205,118.92,118.79,35.99698024]
[1644205355141,33.75539861,118.91,118.79,35.99698024]
[1644205355342,0.2,118.9,118.79,35.99698024]
[1644205356043,35.68283452,118.87,118.79,48.62068024]
[1644205356242,0.2,118.86,118.79,41.99698024]
[1644205356443,0.2,118.86,118.75,80.121]
[1644205356641,0.2,118.86,118.75,58.2495]
[1644205357444,23.38539861,118.85,118.78,35.46344812]
[1644205357645,0.2,118.84,118.78,35.46344812]
[1644205359049,0.2,118.85,118.78,105.50914812]
[1644205359251,0.2,118.9,118.79,4.208]
[1644205359448,0.2,118.9,118.78,41.71344812]
[1644205359648,0.2,118.92,118.78,41.71344812]
[1644205359849,37.27794063,118.92,118.78,41.71344812]
[1644205360049,12.6226,118.9,118.8,12.623]
[1644205360249,22.0902925,118.89,118.78,41.71344812]
[1644205360467,0.1,118.88,118.78,35.71344812]
[1644205360670,0.2,118.88,118.78,35.46344812]
[1644205361271,0.2,118.88,118.74,4.62207072]
[1644205361471,0.2,118.88,118.74,6.41507072]
[1644205361973,12.8251,118.88,118.76,12.6273]
[1644205362174,12.8251,118.88,118.76,18.6273]
[1644205362175,0.2,118.87,118.76,18.6273]
[1644205362474,37.27794063,118.87,118.77,36.10920862]
[1644205362775,0.2,118.86,118.77,42.10920862]
[1644205362973,0.2,118.86,118.77,54.73560862]
[1644205363576,0.2,118.86,118.77,6.0]
[1644205363777,0.2,118.86,118.74,0.41507072]
[1644205364377,12.8269,118.86,118.75,63.7985]
[1644205364576,0.2,118.85,118.76,41.8938284]
[1644205364776,0.1,118.85,118.76,42.1438284]
[1644205364976,0.2,118.86,118.76,48.1438284]
[1644205365477,0.2,118.89,118.78,12.6242]
[1644205365776,0.1,118.89,118.78,18.6242]
[1644205366076,0.1,118.9,118.78,18.6242]
[1644205366279,38.31457665,118.91,118.79,46.98485987]
[1644205366476,0.1,118.9,118.79,46.98485987]
[1644205366677,0.2,118.9,118.79,52.98485987]
[1644205366876,12.6241,118.89,118.79,6.0]
[1644205367080,0.1,118.88,118.75,99.2568]
[1644205367277,0.2,118.88,118.75,99.5068]
[1644205367477,0.1,118.88,118.75,99.5068]
[1644205367677,0.2,118.89,118.75,57.42]
[1644205367876,0.1,118.89,118.76,34.98774113]
[1644205368076,0.45,118.9,118.76,40.98774113]
[1644205368279,0.45,118.9,118.76,41.23774113]
[1644205368477,0.2,118.9,118.76,41.23774113]
[1644205369077,21.20365648,118.88,118.78,39.59612169]
[1644205369280,0.1,118.87,118.78,39.84612169]
[1644205369478,0.2,118.87,118.78,45.59612169]
[1644205369679,0.2,118.87,118.78,6.0]
[1644205370080,12.8263,118.87,118.76,6.0]
[1644205370280,13.0763,118.87,118.74,10.58507072]
[1644205370480,0.2,118.86,118.74,0.41507072]
[1644205370681,10.17,118.85,118.74,0.41507072]
[1644205370981,21.30365648,118.84,118.74,0.41507072]
[1644205371181,0.2,118.83,118.74,0.41507072]
[1644205371581,37.86457665,118.81,118.74,0.41507072]
[1644205371783,12.8348,118.8,118.74,0.41507072]
[1644205371982,21.40365648,118.79,118.74,0.41507072]
[1644205372182,0.1,118.78,118.74,0.41507072]
[1644205372381,0.2,118.78,118.74,0.41507072]
[1644205374186,12.8352,118.78,118.7,18.87334208]
[1644205374385,77.0,118.76,118.68,0.47516544]
[1644205374786,0.1,118.75,118.68,0.47516544]
[1644205375185,36.83327969,118.75,118.68,0.47516544]
[1644205375388,0.1,118.74,118.68,0.47516544]
[1644205375584,22.6943,118.74,118.64,12.6403]
[1644205375788,22.9443,118.74,118.62,1.2439257]
[1644205375986,0.1,118.73,118.62,1.2439257]
[1644205376588,20.82849104,118.73,118.62,1.2439257]
[1644205376785,20.82849104,118.73,118.62,7.2439257]
[1644205376986,12.6423,118.71,118.62,19.8865257]
[1644205377185,12.6423,118.71,118.62,13.8865257]
[1644205377485,0.1,118.7,118.62,1.2439257]
[1644205377686,0.1,118.7,118.62,0.7439257]
[1644205377885,0.25,118.71,118.62,0.7439257]
[1644205378287,12.644,118.7,118.62,13.3871257]
[1644205378586,36.83327969,118.69,118.62,19.3871257]
[1644205378788,0.1,118.68,118.62,19.3871257]
[1644205379189,0.1,118.68,118.62,6.7439257]
[1644205379987,0.1,118.68,118.62,99.05974442]
[1644205380286,0.1,118.68,118.62,47.88974442]
[1644205380487,0.1,118.68,118.62,6.7439257]
[1644205380687,0.1,118.68,118.62,0.7439257]
[1644205380887,0.1,118.68,118.62,6.7439257]
[1644205381088,0.1,118.68,118.62,19.3872257]
[1644205381289,0.1,118.72,118.62,19.6372257]
[1644205381489,0.1,118.74,118.62,70.8072257]
[1644205381891,0.1,118.75,118.62,70.8072257]
[1644205382091,38.48989942,118.75,118.63,34.45565233]
[1644205382290,0.1,118.74,118.63,34.70565233]
[1644205382490,0.1,118.74,118.66,12.6384]
[1644205382693,0.1,118.74,118.66,67.27203595]
[1644205382889,0.1,118.74,118.66,67.52203595]
[1644205384093,0.1,118.76,118.66,118.69203595]
[1644205384295,0.2,118.78,118.66,118.69203595]
[1644205384893,35.11143145,118.78,118.66,118.69203595]
[1644205385093,0.2,118.77,118.66,128.86203595]
[1644205385293,0.2,118.77,118.66,128.61203595]
[1644205385493,0.2,118.77,118.66,77.44203595]
[1644205385694,0.2,118.77,118.66,61.27203595]
[1644205386097,0.2,118.77,118.66,67.27203595]
[1644205386295,0.2,118.77,118.66,61.27203595]
[1644205386500,12.736,118.77,118.64,125.1403]
[1644205386695,0.1,118.76,118.64,125.1403]
[1644205386896,0.1,118.76,118.64,131.1403]
[1644205387095,20.732,118.77,118.64,131.1403]
[1644205387295,10.52,118.77,118.64,182.3103]
[1644205387494,22.55033928,118.76,118.65,35.23296749]
[1644205387695,12.6388,118.75,118.67,12.6376]
[1644205387897,22.55033928,118.76,118.68,47.3103516]
[1644205388400,0.1,118.77,118.68,47.5603516]
[1644205388596,0.1,118.78,118.68,53.5603516]
[1644205388996,0.1,118.78,118.69,12.6358]
[1644205389197,0.1,118.78,118.69,70.0558]
[1644205389403,37.43707799,118.78,118.7,38.60920113]
[1644205389595,37.43707799,118.78,118.7,44.60920113]
[1644205389803,37.43707799,118.78,118.7,44.85920113]
[1644205389804,0.1,118.77,118.7,44.85920113]
[1644205390399,0.1,118.77,118.7,44.60920113]
[1644205390798,0.1,118.77,118.71,51.17]
[1644205390999,12.6325,118.81,118.71,63.8029]
[1644205391201,0.1,118.8,118.71,69.8029]
[1644205391398,611.18749537,118.85,118.71,69.8029]
[1644205391399,0.1,118.83,118.71,69.8029]
[1644205391599,0.1,118.84,118.71,70.0529]
[1644205391801,34.66590478,118.84,118.72,43.91796592]
[1644205392005,12.7303,118.83,118.74,12.6303]
[1644205392203,23.49586595,118.82,118.74,56.27880834]
[1644205392402,0.1,118.81,118.74,56.27880834]
[1644205393003,0.1,118.82,118.75,0.7439257]
[1644205393203,0.1,118.84,118.76,12.6275]
[1644205393604,0.1,118.84,118.76,6.0]
[1644205393806,45.96595703,118.84,118.76,6.0]
[1644205394005,0.1,118.83,118.76,54.16785513]
[1644205394228,12.73,118.83,118.76,54.16785513]
[1644205394430,12.1958137,118.82,118.76,54.16785513]
[1644205394631,0.1,118.81,118.76,54.16785513]
[1644205395030,0.1,118.82,118.76,54.41785513]
[1644205395236,0.1,118.84,118.76,54.41785513]
[1644205395436,0.1,118.84,118.76,118.21615513]
[1644205395832,0.1,118.84,118.76,128.38615513]
[1644205396032,0.1,118.86,118.76,128.38615513]
[1644205396833,0.1,118.89,118.76,128.38615513]
[1644205397035,12.7242,118.89,118.76,128.38615513]
[1644205397236,0.1,118.88,118.76,128.38615513]
[1644205397433,44.64498298,118.88,118.76,128.38615513]
[1644205397634,0.1,118.87,118.76,128.38615513]
[1644205399737,57.16898298,118.88,118.76,128.38615513]
[1644205400534,57.16898298,118.88,118.76,128.13615513]
[1644205400734,57.16898298,118.88,118.76,76.96615513]
[1644205400939,57.16898298,118.88,118.76,70.96615513]
[1644205401136,57.16898298,118.88,118.76,76.96615513]
[1644205401338,57.16898298,118.88,118.76,18.6283]
[1644205401637,57.16898298,118.88,118.76,6.0]
[1644205402038,57.16898298,118.88,118.75,0.7439257]
[1644205402239,57.16898298,118.88,118.85,0.7439257]
[1644205402437,6.06439994,118.87,118.85,0.7439257]
[1644205402638,12.6264,118.86,118.85,2.57e-05]
[1644205403038,12.8764,118.86,118.85,2.57e-05]
[1644205403638,12.6264,118.86,118.85,2.57e-05]
[1644205405346,12.8764,118.86,118.85,2.57e-05]
[1644205405940,12.6264,118.86,118.85,2.57e-05]
[1644205406342,12.8764,118.86,118.85,2.57e-05]
[1644205408343,12.6264,118.86,118.85,2.57e-05]
[1644205408743,12.8764,118.86,118.85,2.57e-05]
[1644205411549,18.8764,118.86,118.85,2.57e-05]
[1644205411951,18.8764,118.86,118.74,4.456]
[1644205412150,18.8764,118.86,118.74,10.456]
[1644205412350,18.8764,118.86,118.74,0.25]
[1644205412550,18.8764,118.86,118.74,6.25]
[1644205412753,46.08899102,118.85,118.75,39.06361115]
[1644205412972,12.6284,118.84,118.75,51.69241115]
[1644205413151,11.87277971,118.83,118.75,57.94241115]
[1644205413855,12.12277971,118.83,118.75,57.94241115]
[1644205414053,12.12277971,118.83,118.75,18.8788]
[1644205414254,24.75197971,118.83,118.73,12.6312]
[1644205414454,24.75197971,118.83,118.71,24.8242676]
[1644205414657,24.75197971,118.83,118.71,29.7069]
[1644205415257,10.17,118.82,118.71,29.7069]
[1644205415467,12.6355,118.78,118.71,29.7069]
[1644205415655,12.6355,118.78,118.7,69.23516389]
[1644205415656,0.2,118.77,118.67,1.1173676]
[1644205415854,0.25,118.78,118.67,1.1173676]
[1644205416059,0.25,118.78,118.66,1.1173676]
[1644205416256,0.25,118.78,118.65,73.1309676]
[1644205416455,10.42,118.78,118.65,73.1309676]
[1644205416657,42.26172382,118.75,118.66,39.04655682]
[1644205416856,0.1,118.74,118.66,39.04655682]
[1644205417257,0.1,118.74,118.66,39.29655682]
[1644205417861,0.1,118.74,118.66,39.04655682]
[1644205418059,12.7395,118.74,118.65,37.1458]
[1644205418258,0.1,118.73,118.65,24.5065]
[1644205418459,0.1,118.73,118.64,1.1173676]
[1644205418659,0.1,118.73,118.63,1.1173676]
[1644205418859,0.25,118.74,118.63,1.1173676]
[1644205418860,0.35,118.74,118.63,1.1173676]
[1644205419060,12.6405,118.73,118.64,41.42420505]
[1644205419260,0.1,118.72,118.64,54.06420505]
[1644205419460,0.1,118.72,118.64,60.06420505]
[1644205419859,0.1,118.72,118.64,111.48420505]
[1644205420061,12.7409,118.72,118.64,60.06420505]
[1644205420261,0.1,118.71,118.64,54.31420505]
[1644205420464,0.1,118.71,118.64,52.94683745]
[1644205420663,0.1,118.72,118.64,53.19683745]
[1644205420861,0.1,118.72,118.64,52.94683745]
[1644205421663,0.1,118.72,118.64,58.94683745]
[1644205421862,0.1,118.72,118.64,52.94683745]
[1644205422063,12.6418,118.71,118.64,52.94683745]
[1644205422263,0.1,118.7,118.64,52.94683745]
[1644205422863,0.1,118.74,118.64,58.94683745]
[1644205423066,0.1,118.74,118.64,110.11683745]
[1644205423263,0.2,118.77,118.65,1.1173676]
[1644205423464,37.59016978,118.77,118.67,47.6534519]
[1644205423663,37.59016978,118.77,118.67,104.8234519]
[1644205423664,0.1,118.76,118.67,104.8234519]
[1644205423964,0.1,118.76,118.7,41.33222543]
[1644205424163,0.1,118.76,118.7,47.33222543]
[1644205424363,0.2,118.77,118.7,47.08222543]
[1644205424764,0.2,118.79,118.7,47.08222543]
[1644205425063,0.2,118.8,118.7,47.08222543]
[1644205425263,41.32307407,118.8,118.7,47.08222543]
[1644205425464,0.2,118.79,118.7,47.08222543]
[1644205426067,29.97409666,118.77,118.7,59.46672543]
[1644205426265,0.1,118.76,118.7,59.46672543]
[1644205426565,0.1,118.76,118.7,6.0]
[1644205426966,0.1,118.76,118.66,6.0]
[1644205427167,0.1,118.76,118.65,240.7258]
[1644205427366,0.1,118.76,118.65,189.8058]
[1644205427665,0.1,118.76,118.66,48.35674072]
[1644205427866,12.7364,118.76,118.66,60.99494072]
[1644205428065,35.21528716,118.75,118.66,67.24494072]
[1644205428268,0.1,118.74,118.66,67.24494072]
[1644205431371,0.1,118.74,118.66,18.6382]
[1644205431570,0.1,118.74,118.65,12.6402]
[1644205431571,12.7386,118.74,118.65,12.6402]
[1644205431775,0.1,118.73,118.65,12.6402]
[1644205431967,0.35,118.74,118.65,12.6402]
[1644205432170,0.35,118.74,118.62,42.1339]
[1644205432369,0.35,118.74,118.62,45.40648952]
[1644205432968,0.1,118.74,118.62,51.40648952]
[1644205433169,34.46528716,118.75,118.62,51.40648952]
[1644205433571,34.46528716,118.75,118.62,102.57648952]
[1644205433769,34.46528716,118.75,118.64,44.09786069]
[1644205433770,12.6409,118.72,118.64,44.09786069]
[1644205434169,0.1,118.77,118.65,2.16357196]
[1644205434370,0.1,118.77,118.66,51.17]
[1644205434571,0.1,118.78,118.66,57.17]
[1644205434771,12.6354,118.77,118.69,12.6354]
[1644205434970,52.80931026,118.77,118.7,38.84977273]
[1644205435171,52.70931026,118.77,118.69,12.8854]
[1644205435372,52.80931026,118.77,118.69,12.8854]
[1644205435575,52.70931026,118.77,118.69,12.8854]
[1644205435772,52.80931026,118.77,118.69,12.8854]
[1644205435975,52.70931026,118.77,118.69,12.8854]
[1644205436172,52.70931026,118.77,118.7,40.88667525]
[1644205436173,52.80931026,118.77,118.7,40.88667525]
[1644205436374,52.70931026,118.77,118.7,40.88667525]
[1644205436573,52.80931026,118.77,118.7,40.88667525]
[1644205436774,52.70931026,118.77,118.7,40.88667525]
[1644205436975,52.80931026,118.77,118.7,40.88667525]
[1644205437174,52.95931026,118.77,118.67,12.6373]
[1644205437378,52.80931026,118.77,118.67,18.8873]
[1644205437578,52.95931026,118.77,118.67,18.8873]
[1644205437781,53.05931026,118.77,118.64,42.1272]
[1644205437979,2.16357196,118.76,118.65,0.25]
[1644205438178,27.65786047,118.75,118.65,0.25]
[1644205438379,27.75786047,118.75,118.65,0.25]
[1644205438580,12.6421,118.73,118.65,0.25]
[1644205438779,40.07391026,118.72,118.65,0.25]
[1644205439179,40.07391026,118.72,118.63,62.88187318]
[1644205440081,12.642,118.71,118.63,62.88187318]
[1644205440682,12.642,118.71,118.63,62.63187318]
[1644205441287,60.92615714,118.7,118.61,13.7610676]
[1644205441681,143.0,118.69,118.57,6.45604956]
[1644205441882,10.17,118.68,118.53,3.3]
[1644205442083,36.678834,118.68,118.51,0.37214136]
[1644205442282,20.77968524,118.67,118.51,35.88710611]
[1644205442484,46.28444006,118.65,118.51,35.88710611]
[1644205442682,11.27733067,118.63,118.51,35.88710611]
[1644205442884,12.6557,118.61,118.51,35.88710611]
[1644205443096,51.77724019,118.61,118.51,41.88710611]
[1644205443298,12.9057,118.61,118.51,41.88710611]
[1644205443600,12.9057,118.61,118.51,35.88710611]
[1644205443797,10.17,118.6,118.51,35.88710611]
[1644205443997,12.6557,118.61,118.51,89.22067807]
[1644205444199,10.17,118.63,118.52,163.67]
[1644205444200,12.651,118.63,118.52,163.67]
[1644205444397,12.651,118.63,118.52,51.17]
[1644205444597,12.651,118.63,118.53,2.16357196]
[1644205444797,12.651,118.63,118.53,59.33357196]
[1644205445000,32.7246,118.67,118.55,63.8198]
[1644205445198,32.7246,118.67,118.55,70.0698]
[1644205445400,12.6489,118.65,118.56,87.92305344]
[1644205445601,12.6489,118.65,118.56,93.92305344]
[1644205445802,12.6489,118.65,118.56,94.17305344]
[1644205446105,4.215,118.7,118.57,65.98167196]
[1644205446300,23.7136,118.71,118.57,65.98167196]
[1644205446301,10.17,118.72,118.57,66.23167196]
[1644205446501,10.17,118.72,118.58,2.48307216]
[1644205446701,12.6436,118.7,118.59,61.34]
[1644205446900,12.6436,118.7,118.6,40.42886868]
[1644205447101,10.17,118.74,118.63,51.17]
[1644205447301,0.1,118.75,118.63,51.42]
[1644205447501,0.2,118.77,118.65,51.17]
[1644205447700,0.2,118.77,118.65,67.59]
[1644205448002,0.2,118.77,118.67,51.17]
[1644205448301,22.77584924,118.77,118.68,89.06516216]
[1644205448501,0.1,118.76,118.68,89.06516216]
[1644205448704,0.2,118.78,118.68,44.14516216]
[1644205448904,10.37,118.8,118.68,44.14516216]
[1644205449105,0.2,118.79,118.68,44.14516216]
[1644205449303,12.6359,118.77,118.68,56.78156216]
[1644205449501,48.91469121,118.76,118.68,56.78156216]
[1644205449701,0.1,118.75,118.68,18.6364]
[1644205449902,0.1,118.75,118.68,6.0]
[1644205450101,0.1,118.75,118.63,6.0]
[1644205450102,10.27,118.75,118.63,6.0]
[1644205450301,25.32137196,118.75,118.59,22.5562]
[1644205450707,8.74707952,118.74,118.59,22.5562]
[1644205451002,48.08037952,118.72,118.6,46.73114804]
[1644205451202,58.50037952,118.72,118.6,46.98114804]
[1644205451602,58.50037952,118.72,118.6,52.73114804]
[1644205451805,58.50037952,118.72,118.6,46.73114804]
[1644205451806,9.48139121,118.69,118.6,46.73114804]
[1644205452102,19.65139121,118.69,118.6,46.73114804]
[1644205452303,19.90139121,118.69,118.6,46.73114804]
[1644205452903,12.6479,118.67,118.6,46.73114804]
[1644205453103,12.6479,118.67,118.55,211.8851]
[1644205453303,12.8979,118.67,118.58,0.25]
[1644205454104,38.62588612,118.66,118.56,47.51565248]
[1644205454304,12.6488,118.65,118.57,12.6488]
[1644205454505,12.6488,118.65,118.58,46.60602958]
[1644205454506,18.93588461,118.64,118.58,46.60602958]
[1644205455105,12.6488,118.65,118.58,46.60602958]
[1644205455305,12.8988,118.65,118.58,46.60602958]
[1644205455509,12.6488,118.65,118.58,46.60602958]
[1644205455705,12.6488,118.65,118.58,46.85602958]
[1644205456507,18.57150754,118.64,118.58,46.85602958]
[1644205456905,18.57150754,118.64,118.58,0.25]
[1644205457107,18.57150754,118.64,118.57,12.8988]
[1644205457506,31.22120754,118.64,118.56,12.65]
[1644205457806,41.64120754,118.64,118.51,0.37214136]
[1644205458004,43.8047795,118.64,118.51,0.37214136]
[1644205458208,49.8047795,118.64,118.51,0.37214136]
[1644205459012,49.8047795,118.64,118.51,40.87934717]
[1644205459210,49.8047795,118.64,118.51,0.37214136]
[1644205459211,54.0207795,118.64,118.51,0.37214136]
[1644205459410,54.0207795,118.64,118.51,6.37214136]
[1644205460213,54.0207795,118.64,118.52,42.2242269]
[1644205460411,49.8047795,118.64,118.52,42.2242269]
[1644205460615,49.8047795,118.64,118.52,48.2242269]
[1644205461415,6.20162,118.63,118.52,6.0]
[1644205461618,12.661,118.6,118.51,0.37214136]
[1644205461816,10.17,118.59,118.51,0.37214136]
[1644205462218,10.42,118.59,118.51,0.37214136]
[1644205462416,38.99026319,118.58,118.51,0.37214136]
[1644205462716,10.17,118.57,118.51,37.08955463]
[1644205462918,22.8315,118.57,118.51,0.37214136]
[1644205463118,23.0815,118.57,118.51,6.37214136]
[1644205463920,23.0815,118.57,118.51,48.14743898]
[1644205464321,23.0815,118.57,118.51,6.37214136]
[1644205464721,22.8315,118.57,118.51,0.37214136]
[1644205464922,22.8315,118.57,118.51,6.37214136]
[1644205465528,22.8315,118.57,118.51,0.37214136]
[1644205465727,22.8315,118.57,118.51,6.37214136]
[1644205465927,12.6604,118.56,118.51,6.37214136]
[1644205466129,22.8304,118.56,118.51,0.37214136]
[1644205466327,22.8304,118.56,118.51,6.37214136]
[1644205466931,22.8304,118.56,118.51,0.37214136]
[1644205467129,23.0804,118.56,118.51,6.37214136]
[1644205467330,23.0804,118.56,118.51,0.37214136]
[1644205467529,23.0804,118.56,118.52,43.60346527]
[1644205467827,22.8304,118.56,118.51,0.37214136]
[1644205468029,10.17,118.56,118.51,0.37214136]
[1644205468629,10.17,118.58,118.51,45.22426609]
[1644205468830,10.17,118.59,118.51,45.22426609]
[1644205469029,10.17,118.59,118.51,51.47426609]
[1644205469429,99.667,118.66,118.51,53.63783805]
[1644205469629,10.17,118.61,118.51,53.63783805]
[1644205469830,10.17,118.63,118.51,64.12956609]
[1644205470030,48.37909375,118.62,118.51,64.12956609]
[1644205471030,12.6538,118.61,118.51,63.87956609]
[1644205471230,22.8238,118.61,118.52,2.16357196]
[1644205471430,22.8238,118.61,118.51,51.22426609]
[1644205472032,58.24072764,118.61,118.51,51.22426609]
[1644205472231,58.49072764,118.61,118.51,51.22426609]
[1644205472433,58.49072764,118.61,118.51,0.37214136]
[1644205472732,66.6542996,118.61,118.51,0.37214136]
[1644205473332,64.49072764,118.61,118.51,0.37214136]
[1644205473531,64.49072764,118.61,118.51,38.44365157]
[1644205473731,64.49072764,118.61,118.51,0.37214136]
[1644205473931,66.6542996,118.61,118.51,0.37214136]
[1644205474132,97.62751642,118.61,118.51,0.37214136]
[1644205474433,224.73751642,118.61,118.51,0.37214136]
[1644205474834,22.14484309,118.59,118.51,0.37214136]
[1644205475132,35.41692764,118.57,118.51,0.37214136]
[1644205475332,10.17,118.56,118.51,0.37214136]
[1644205475733,10.42,118.56,118.51,0.37214136]
[1644205476333,22.14484309,118.55,118.51,0.37214136]
[1644205476533,22.834,118.54,118.51,0.37214136]
[1644205476755,6.06439994,118.53,118.51,0.37214136]
[1644205477133,6.06439994,118.53,118.5,0.29767904]
[1644205477134,6.06439994,118.53,118.46,0.33756612]
[1644205477334,10.17,118.52,118.46,0.33756612]
[1644205477633,12.6686,118.5,118.46,0.33756612]
[1644205477834,23.27091294,118.49,118.46,0.33756612]
[1644205478035,6.06439994,118.48,118.46,0.33756612]
[1644205478236,6.31439994,118.48,118.46,0.33756612]
[1644205479036,12.6686,118.47,118.46,0.33756612]
[1644205479338,12.6686,118.47,118.45,0.30797488]
[1644205479339,6.06439994,118.46,118.45,0.30797488]
[1644205479738,40.60525773,118.46,118.45,0.30797488]
[1644205480138,6.06439994,118.46,118.45,0.30797488]
[1644205481142,6.31439994,118.46,118.45,0.30797488]
[1644205481343,6.06439994,118.46,118.45,0.30797488]
[1644205481540,6.31439994,118.46,118.45,0.30797488]
[1644205483041,6.06439994,118.46,118.45,0.30797488]
[1644205483241,26.42186727,118.46,118.45,0.00797488]
[1644205483644,36.59186727,118.46,118.45,0.00797488]
[1644205483842,16.48439994,118.46,118.45,0.00797488]
[1644205485270,16.23439994,118.46,118.45,0.00797488]
[1644205486170,54.34894676,118.46,118.45,0.00797488]
[1644205486770,96.83974676,118.46,118.45,0.00797488]
[1644205487070,12.6743,118.43,118.36,0.32574893]
[1644205487272,12.9243,118.43,118.36,0.94169869]
[1644205487469,10.17,118.42,118.36,0.94169869]
[1644205487671,19.44722391,118.41,118.36,0.94169869]
[1644205488082,19.69722391,118.41,118.36,0.94169869]
[1644205488271,32.37372391,118.41,118.36,0.94169869]
[1644205488574,42.54372391,118.41,118.36,0.94169869]
[1644205488971,42.54372391,118.41,118.28,6.64929588]
[1644205489172,42.54372391,118.41,118.29,36.45438341]
[1644205490173,42.29372391,118.41,118.31,39.35239627]
[1644205490572,42.29372391,118.41,118.33,37.92667846]
[1644205490771,42.29372391,118.41,118.33,37.42667846]
[1644205491173,42.29372391,118.41,118.33,37.67667846]
[1644205492076,42.29372391,118.41,118.33,37.42667846]
[1644205492476,23.0965,118.41,118.33,37.42667846]
[1644205492983,23.0965,118.41,118.29,42.2466]
[1644205493177,23.0965,118.41,118.29,48.2466]
[1644205493979,50.42388174,118.4,118.3,50.27019672]
[1644205494181,50.42388174,118.4,118.3,56.27019672]
[1644205494380,50.67388174,118.4,118.3,56.27019672]
[1644205494579,50.67388174,118.4,118.3,18.6764]
[1644205494781,10.17,118.39,118.3,6.0]
[1644205495182,16.42,118.39,118.28,0.18324632]
[1644205495583,19.3724903,118.38,118.28,48.23034077]
[1644205495782,37.74758174,118.36,118.28,48.23034077]
[1644205495985,47.91758174,118.36,118.28,54.23034077]
[1644205496183,48.16758174,118.36,118.28,54.23034077]
[1644205497183,23.1009,118.36,118.28,54.23034077]
[1644205497391,23.1009,118.36,118.28,54.48034077]
[1644205497993,23.1009,118.36,118.28,54.23034077]
[1644205498193,45.21040526,118.35,118.28,54.23034077]
[1644205498490,12.9309,118.36,118.28,54.23034077]
[1644205498690,12.6809,118.36,118.28,54.23034077]
[1644205498890,10.17,118.37,118.28,54.23034077]
[1644205499091,12.6785,118.38,118.28,54.23034077]
[1644205499290,12.6785,118.38,118.28,54.48034077]
[1644205499491,4.225,118.43,118.29,10.17]
[1644205499691,22.8142,118.46,118.34,12.6706]
[1644205500191,22.8142,118.46,118.34,18.9206]
[1644205500593,40.07405171,118.45,118.35,40.47339663]
[1644205500890,62.91505171,118.45,118.35,53.39479663]
[1644205501092,62.91505171,118.45,118.35,40.72339663]
[1644205502191,62.91505171,118.45,118.35,46.72339663]
[1644205502392,62.91505171,118.45,118.35,59.39469663]
[1644205502594,22.841,118.45,118.35,110.56469663]
[1644205503393,22.341,118.45,118.35,110.56469663]
[1644205503594,4.222,118.5,118.35,120.73469663]
[1644205503794,46.28449659,118.51,118.37,51.17]
[1644205503994,4.222,118.55,118.37,51.17]
[1644205503995,10.17,118.55,118.43,63.8319]
[1644205504195,10.17,118.55,118.43,69.8319]
[1644205504493,509.29433565,118.56,118.44,2.16357196]
[1644205504693,509.29433565,118.56,118.45,51.17]